bitfinex/quotes_SOLUSD_20250306
["timestamp","ask_amount","ask_price","bid_price","bid_amount"]
[1741300790852,83.47314911,144.19,144.18,0.0001]
[1741300791056,82.0,144.18,144.16,0.0001]
[1741300791225,83.47314911,144.17,144.16,0.0001]
[1741300791938,86.94124911,144.17,144.16,0.0001]
[1741300794839,4.94124911,144.17,144.16,0.0001]
[1741300795227,11.74247225,144.17,144.16,0.0001]
[1741300796629,13.74247225,144.17,144.16,0.0001]
[1741300797752,13.74247225,144.17,144.09,0.03]
[1741300797753,39.75337225,144.17,144.09,0.03]
[1741300798047,6.86,144.16,144.09,0.03]
[1741300798251,1.47314911,144.15,144.09,312.03]
[1741300799249,12.1409,144.14,144.09,312.03]
[1741300799431,82.0,144.13,144.09,0.03]
[1741300799632,83.47314911,144.13,144.09,0.03]
[1741300800837,82.0,144.13,144.09,0.03]
[1741300801660,3.4693,144.12,144.09,0.03]
[1741300802150,85.469,144.13,144.09,0.03]
[1741300802448,3.469,144.13,144.11,0.14216157]
[1741300802628,3.4686,144.15,144.11,0.14216157]
[1741300802954,3.4686,144.15,144.09,0.17216157]
[1741300803727,12.1401,144.15,144.09,0.17216157]
[1741300804449,82.0,144.14,144.09,0.17216157]
[1741300805733,3.469,144.13,144.09,0.17216157]
[1741300805928,3.469,144.13,144.09,312.17216157]
[1741300806125,82.0,144.12,144.09,0.0001]
[1741300806349,1.47314911,144.11,144.09,0.0001]
[1741300806543,82.0,144.1,144.09,0.0001]
[1741300807165,7.14432314,144.1,144.09,0.0001]
[1741300807451,8.61747225,144.1,144.09,0.0001]
[1741300808034,12.08727225,144.1,144.09,0.0001]
[1741300808239,40.11077225,144.1,144.05,0.0001]
[1741300808433,82.0,144.09,144.05,0.0001]
[1741300808749,1.47314911,144.08,144.05,0.0001]
[1741300809852,91.98602314,144.07,144.03,0.03]
[1741300810055,3.471,144.05,144.03,0.03]
[1741300810236,1.47314911,144.04,144.03,0.03]
[1741300810433,82.0,144.03,144.01,0.03]
[1741300810633,1.47314911,144.02,144.01,0.03]
[1741300811331,82.0,144.01,143.99,0.0001]
[1741300811535,83.47314911,144.0,143.99,0.0001]
[1741300811934,93.89824911,144.0,143.97,0.0001]
[1741300812130,3.4724,143.99,143.97,0.0001]
[1741300812334,1.47314911,143.98,143.97,0.0001]
[1741300812535,83.47314911,143.98,143.97,0.0001]
[1741300814241,4.94584911,143.98,143.97,0.0001]
[1741300816454,3.4727,143.98,143.97,0.0001]
[1741300816644,8.6791,144.03,143.97,0.0001]
[1741300816645,1.47314911,144.02,143.97,0.0001]
[1741300816846,3.4719,144.01,143.97,0.0001]
[1741300817571,3.4716,144.03,143.97,0.0001]
[1741300818074,7.938,144.08,143.97,89.38658471]
[1741300818075,3.471,144.05,143.97,89.38658471]
[1741300818249,3.4707,144.06,143.99,0.42648471]
[1741300818455,3.4705,144.07,143.99,82.52648471]
[1741300818666,3.47,144.09,144.01,0.42648471]
[1741300818968,3.4695,144.11,144.03,0.42648471]
[1741300819461,17.00504911,144.15,144.05,0.42648471]
[1741300819643,17.00504911,144.15,144.09,0.14216157]
[1741300820040,3.4688,144.14,144.06,0.14216157]
[1741300820271,3.4688,144.14,144.08,0.14216157]
[1741300820452,82.0,144.13,144.08,0.14216157]
[1741300821262,12.1409,144.14,144.07,0.14216157]
[1741300822066,83.47314911,144.13,144.04,6.0374]
[1741300822274,12.1426,144.12,144.04,6.0374]
[1741300822445,1.47314911,144.11,144.04,6.0374]
[1741300822643,82.0,144.1,144.05,0.14216157]
[1741300823265,82.0,144.1,144.05,312.14216157]
[1741300824281,85.4693,144.12,144.07,0.14216157]
[1741300824453,3.4691,144.13,144.07,0.14216157]
[1741300826552,3.4691,144.13,144.08,0.28432314]
[1741300827250,3.4691,144.13,144.11,0.14216157]
[1741300827852,3.4691,144.13,144.1,312.0]
[1741300827853,3.4691,144.13,144.09,0.14216157]
[1741300830882,3.4691,144.13,144.12,0.14216157]
[1741300832679,3.5021,144.13,144.09,0.14216157]
[1741300833875,12.1748,144.13,144.07,6.86]
[1741300834080,94.1748,144.13,144.08,0.14216157]
[1741300835686,94.1748,144.13,144.08,312.14216157]
[1741300837693,94.1748,144.13,144.05,0.42648471]
[1741300838001,83.47314911,144.12,144.04,88.1374]
[1741300838299,82.0,144.11,144.05,0.14216157]
[1741300839085,94.1443,144.1,144.05,0.14216157]
[1741300840701,94.1443,144.1,144.05,312.14216157]
[1741300841378,82.0,144.09,144.01,89.995]
[1741300841706,82.0,144.09,144.02,0.14216157]
[1741300843416,12.1459,144.08,144.02,0.14216157]
[1741300844498,12.1459,144.08,144.03,312.0]
[1741300845600,94.1459,144.08,144.03,312.0]
[1741300850207,94.1459,144.08,144.02,0.14216157]
[1741300853215,94.1459,144.08,144.03,312.0]
[1741300856918,94.1459,144.08,144.04,0.14216157]
[1741300857102,0.033,144.09,144.04,82.52648471]
[1741300857415,0.033,144.09,144.06,6.61538471]
[1741300857632,0.033,144.09,144.08,0.14216157]
[1741300858507,0.033,144.09,144.08,0.42648471]
[1741300859513,0.033,144.09,144.08,7.36698471]
[1741300860105,0.033,144.09,144.08,319.36698471]
[1741300861797,0.033,144.13,144.08,319.36698471]
[1741300862122,0.033,144.13,144.12,0.14216157]
[1741300862307,0.033,144.13,144.12,89.08216157]
[1741300864906,0.033,144.13,144.12,401.08216157]
[1741300865520,0.033,144.13,144.12,408.30508471]
[1741300867601,0.033,144.13,144.12,414.57558471]
[1741300873528,0.033,144.13,144.12,375.07558471]
[1741300875230,0.033,144.13,144.12,414.1491]
[1741300875529,0.033,144.13,144.12,400.94]
[1741300875740,0.033,144.13,144.12,401.36648471]
[1741300876440,0.033,144.13,144.12,400.94]
[1741300876808,0.033,144.13,144.12,394.52648471]
[1741300877009,0.033,144.13,144.12,312.0]
[1741300877229,0.033,144.13,144.12,312.42648471]
[1741300878236,0.033,144.16,144.15,20.14216157]
[1741300878436,0.033,144.25,144.16,0.42648471]
[1741300878743,0.033,144.25,144.21,0.42648471]
[1741300878916,0.033,144.25,144.22,7.36028471]
[1741300879324,0.033,144.25,144.22,97.75582726]
[1741300881338,0.033,144.25,144.22,409.75582726]
[1741300881538,0.033,144.25,144.22,450.90028471]
[1741300885658,0.033,144.25,144.22,401.46028471]
[1741300885961,0.033,144.25,144.22,408.28028471]
[1741300887644,0.033,144.25,144.22,401.34648471]
[1741300888445,0.033,144.25,144.19,82.1]
[1741300888649,0.033,144.25,144.18,6.82]
[1741300888854,82.033,144.25,144.15,247.3]
[1741300889044,82.0,144.24,144.16,0.42648471]
[1741300889353,82.0,144.24,144.16,7.36318471]
[1741300889545,82.0,144.24,144.16,8.81954649]
[1741300890353,85.4665,144.24,144.16,8.81954649]
[1741300891358,85.4665,144.24,144.2,0.14216157]
[1741300891531,3.4665,144.24,144.2,0.14216157]
[1741300892355,3.4992,144.25,144.2,0.42648471]
[1741300894934,3.4992,144.25,144.2,312.42648471]
[1741300895353,0.033,144.25,144.2,319.36118471]
[1741300895651,0.033,144.25,144.2,7.36118471]
[1741300895958,0.033,144.25,144.2,8.81689686]
[1741300896254,0.033,144.25,144.2,90.91689686]
[1741300896852,0.033,144.25,144.2,108.25389686]
[1741300897035,0.033,144.25,144.22,20.42648471]
[1741300897236,0.033,144.25,144.22,21.88194217]
[1741300898639,0.033,144.25,144.22,340.81574217]
[1741300898839,0.033,144.25,144.22,339.36028471]
[1741300899663,0.033,144.25,144.22,421.46028471]
[1741300905945,0.033,144.28,144.23,0.42648471]
[1741300906152,0.033,144.28,144.25,0.42648471]
[1741300907170,0.033,144.28,144.27,0.42648471]
[1741300909076,0.033,144.28,144.27,319.35788471]
[1741300909457,0.033,144.28,144.27,312.42648471]
[1741300911476,3.4308,144.31,144.27,312.42648471]
[1741300911978,3.4308,144.31,144.27,0.42648471]
[1741300912268,0.033,144.33,144.27,90.91274208]
[1741300914859,0.033,144.33,144.32,0.14216157]
[1741300915384,0.033,144.33,144.28,0.14216157]
[1741300915567,0.033,144.33,144.29,0.28432314]
[1741300915758,0.033,144.33,144.3,0.14216157]
[1741300917181,11.79034911,144.36,144.3,0.14216157]
[1741300917383,6.4589,144.34,144.3,0.14216157]
[1741300917881,6.4589,144.34,144.28,0.14216157]
[1741300918469,6.4589,144.34,144.28,312.14216157]
[1741300918664,3.4642,144.33,144.28,312.14216157]
[1741300920969,12.1249,144.33,144.28,312.14216157]
[1741300922287,27.81777158,144.32,144.28,312.14216157]
[1741300922670,12.1249,144.33,144.28,312.14216157]
[1741300925670,12.1249,144.33,144.28,0.14216157]
[1741300926570,12.1249,144.33,144.28,0.17216157]
[1741300928281,6.38951105,144.34,144.28,0.17216157]
[1741300928671,6.38951105,144.34,144.28,312.17216157]
[1741300929673,12.1249,144.33,144.28,312.17216157]
[1741300930083,3.464,144.34,144.28,0.17216157]
[1741300930391,3.464,144.34,144.28,7.10306157]
[1741300931493,82.033,144.37,144.3,0.42648471]
[1741300931680,2.7708,144.36,144.3,0.42648471]
[1741300931989,0.033,144.37,144.32,0.42648471]
[1741300932170,0.033,144.37,144.32,7.35518471]
[1741300932970,0.033,144.37,144.36,0.14216157]
[1741300933568,0.033,144.37,144.33,0.14216157]
[1741300933770,0.033,144.37,144.35,0.14216157]
[1741300936569,0.033,144.37,144.36,312.14216157]
[1741300944015,0.033,144.37,144.36,0.14216157]
[1741300946603,0.033,144.37,144.33,82.1]
[1741300946804,0.033,144.37,144.29,83.6656]
[1741300947100,0.033,144.37,144.31,312.0]
[1741300947497,0.033,144.37,144.32,0.14216157]
[1741300947738,82.0,144.36,144.28,88.93]
[1741300948187,1.50614911,144.37,144.28,6.83]
[1741300948188,82.0,144.35,144.28,6.83]
[1741300948581,9.6992,144.34,144.29,0.14216157]
[1741300948782,9.6992,144.34,144.28,6.83]
[1741300949210,9.6992,144.34,144.29,0.14216157]
[1741300950622,9.6992,144.34,144.29,312.14216157]
[1741300950996,2.7712,144.34,144.31,0.14216157]
[1741300951205,84.7711,144.35,144.31,0.14216157]
[1741300951596,2.7709,144.36,144.3,0.14216157]
[1741300953130,2.8036,144.37,144.3,7.07196157]
[1741300953305,2.8036,144.37,144.3,8.52680914]
[1741300954123,2.8036,144.37,144.35,0.14216157]
[1741300954622,2.8036,144.37,144.33,0.14216157]
[1741300955239,2.8036,144.37,144.31,0.14216157]
[1741300955411,9.7302,144.37,144.31,0.14216157]
[1741300956432,11.20334911,144.37,144.31,0.14216157]
[1741300956933,82.0,144.36,144.3,0.14216157]
[1741300957301,82.0,144.36,144.29,0.14216157]
[1741300957728,9.6986,144.35,144.32,0.14216157]
[1741300958197,9.6986,144.35,144.29,0.14216157]
[1741300958515,2.771,144.35,144.29,0.14216157]
[1741300958712,84.7709,144.36,144.29,0.14216157]
[1741300958912,82.0,144.35,144.28,0.03]
[1741300959114,82.0,144.34,144.28,0.03]
[1741300959427,82.0,144.34,144.28,0.17216157]
[1741300961103,82.0,144.34,144.3,0.14216157]
[1741300961725,82.0,144.34,144.28,0.17216157]
[1741300962303,82.0,144.34,144.28,7.10286157]
[1741300962624,0.033,144.37,144.31,0.42648471]
[1741300962828,0.033,144.37,144.33,1.72546157]
[1741300963119,0.033,144.37,144.33,0.14216157]
[1741300964012,0.033,144.37,144.35,0.14216157]
[1741300964416,0.033,144.37,144.35,82.24216157]
[1741300964628,0.033,144.37,144.36,312.14216157]
[1741300965424,84.7695,144.43,144.36,312.14216157]
[1741300965626,84.7695,144.43,144.37,0.14216157]
[1741300966123,84.7695,144.43,144.35,82.1]
[1741300966124,1.47314911,144.42,144.35,82.1]
[1741300966321,1.47314911,144.42,144.36,0.14216157]
[1741300967627,4.24294911,144.42,144.36,0.14216157]
[1741300968607,4.24294911,144.42,144.37,15.25981786]
[1741300968810,4.24294911,144.42,144.36,312.14216157]
[1741300969527,2.7698,144.42,144.36,312.14216157]
[1741300970124,82.0,144.41,144.36,312.14216157]
[1741300971217,82.0,144.41,144.36,319.06916157]
[1741300971721,82.0,144.41,144.36,7.06916157]
[1741300974032,82.0,144.41,144.36,8.71266157]
[1741300974236,82.0,144.41,144.36,8.74266157]
[1741300974624,82.0,144.41,144.37,312.0]
[1741300975437,82.0,144.41,144.36,8.74266157]
[1741300977132,82.0,144.41,144.36,0.03]
[1741300977331,84.7699,144.41,144.36,0.17216157]
[1741300978019,84.7699,144.41,144.37,0.14216157]
[1741300978433,84.7699,144.41,144.37,312.14216157]
[1741300980015,84.7699,144.41,144.37,0.14216157]
[1741300980738,84.7699,144.41,144.36,0.03]
[1741300980911,84.7699,144.41,144.36,0.17216157]
[1741300982634,84.7699,144.41,144.36,0.03]
[1741300982841,84.7699,144.41,144.37,0.14216157]
[1741300983027,84.7699,144.41,144.37,312.14216157]
[1741300985155,84.7699,144.41,144.36,0.17216157]
[1741300986436,84.7699,144.41,144.36,0.03]
[1741300987525,84.8029,144.41,144.36,0.03]
[1741300988045,84.8029,144.41,144.37,0.14216157]
[1741300990747,84.8029,144.41,144.36,0.03]
[1741300993243,82.033,144.41,144.36,0.03]
[1741300993562,0.033,144.41,144.36,0.03]
[1741300993723,0.033,144.41,144.4,0.14216157]
[1741300994348,0.033,144.41,144.36,0.17216157]
[1741300994535,2.8029,144.41,144.36,0.17216157]
[1741300994848,0.033,144.41,144.38,0.14216157]
[1741300995043,0.033,144.41,144.4,0.14216157]
[1741300996443,0.033,144.41,144.39,0.14216157]
[1741300997345,0.033,144.41,144.4,312.14216157]
[1741300998537,0.033,144.41,144.4,319.06736157]
[1741300999146,0.033,144.41,144.4,312.14216157]
[1741300999550,0.033,144.42,144.41,0.14216157]
[1741301000558,0.033,144.42,144.4,0.14216157]
[1741301001745,0.033,144.41,144.4,0.14216157]
[1741301002644,0.033,144.41,144.39,7.06776157]
[1741301002847,0.033,144.41,144.4,312.14216157]
[1741301004054,0.033,144.41,144.4,0.14216157]
[1741301007140,0.033,144.41,144.4,312.14216157]
[1741301010235,0.033,144.41,144.4,7.06736157]
[1741301012049,0.033,144.41,144.4,13.84736157]
[1741301013058,0.033,144.41,144.4,95.94736157]
[1741301013256,0.033,144.41,144.4,407.94736157]
[1741301017158,0.033,144.41,144.4,408.23168471]
[1741301018766,0.033,144.41,144.4,450.83168471]
[1741301019145,0.033,144.42,144.41,8.44748471]
[1741301019467,0.033,144.42,144.41,9.90089047]
[1741301020756,0.033,144.42,144.41,16.82559047]
[1741301022159,0.033,144.42,144.41,141.52559047]
[1741301022469,0.033,144.42,144.41,452.07218471]
[1741301024549,0.033,144.42,144.41,459.76587997]
[1741301024748,0.033,144.42,144.41,458.4257]
[1741301024948,0.033,144.42,144.41,458.85218471]
[1741301028349,0.033,144.42,144.41,450.83118471]
[1741301030750,0.0001,144.42,144.41,450.83118471]
[1741301031355,0.0001,144.42,144.41,452.48398471]
[1741301037882,0.0001,144.42,144.41,452.51398471]
[1741301040774,0.0001,144.42,144.41,445.73398471]
[1741301040977,0.0001,144.42,144.41,452.51398471]
[1741301046489,0.0001,144.42,144.41,475.36398471]
[1741301046669,6.0671,144.53,144.46,0.14216157]
[1741301046874,6.0671,144.53,144.48,0.42648471]
[1741301047184,6.0671,144.53,144.5,0.14216157]
[1741301047378,6.0671,144.53,144.5,82.24216157]
[1741301047971,1.6137,144.54,144.5,82.24216157]
[1741301048179,1.6137,144.54,144.52,0.14216157]
[1741301048365,1.6137,144.54,144.52,6.92216157]
[1741301048587,8.1581,144.57,144.52,6.92216157]
[1741301049297,8.1581,144.57,144.52,13.84146157]
[1741301049496,1.5371,144.57,144.52,13.84146157]
[1741301049794,1.5371,144.57,144.54,312.14216157]
[1741301051178,1.9066438,144.55,144.54,312.14216157]
[1741301052572,1.9066438,144.55,144.54,319.06066157]
[1741301053378,1.9066438,144.55,144.54,401.16066157]
[1741301058705,1.9066438,144.55,144.54,401.44498471]
[1741301059411,1.9066438,144.55,144.54,444.04498471]
[1741301059609,4.38e-05,144.55,144.54,444.04498471]
[1741301061804,4.38e-05,144.55,144.54,446.04498471]
[1741301062002,6.2805,144.65,144.54,446.04498471]
[1741301062217,6.2805,144.65,144.58,0.42648471]
[1741301062412,6.2805,144.65,144.62,20.0]
[1741301062715,1.5949,144.66,144.63,0.14216157]
[1741301063493,3.4563,144.67,144.63,0.14216157]
[1741301063699,3.4563,144.67,144.65,0.14216157]
[1741301064719,3.4556,144.69,144.65,0.14216157]
[1741301065211,3.4556,144.69,144.67,0.14216157]
[1741301065913,3.4556,144.69,144.65,0.14216157]
[1741301068592,3.4556,144.69,144.68,0.14216157]
[1741301069126,3.4556,144.69,144.65,0.14216157]
[1741301072124,3.4556,144.69,144.65,312.14216157]
[1741301076299,3.4556,144.69,144.65,0.14216157]
[1741301076711,3.4886,144.69,144.65,0.14216157]
[1741301079226,3.4886,144.69,144.67,0.14216157]
[1741301079826,0.033,144.69,144.67,0.14216157]
[1741301082712,0.033,144.69,144.68,312.14216157]
[1741301082928,0.033,144.69,144.68,394.24216157]
[1741301086031,0.033,144.69,144.68,312.14216157]
[1741301086509,0.033,144.69,144.68,0.14216157]
[1741301089537,0.033,144.69,144.68,312.14216157]
[1741301091241,0.033,144.69,144.68,0.14216157]
[1741301094040,0.033,144.69,144.68,7.05396157]
[1741301094240,0.033,144.69,144.68,312.14216157]
[1741301096252,2.7635,144.74,144.69,0.14216157]
[1741301096434,2.7635,144.74,144.69,82.24216157]
[1741301097744,6.9085,144.75,144.69,82.24216157]
[1741301099140,6.9085,144.75,144.69,82.1]
[1741301099343,6.9085,144.75,144.7,0.14216157]
[1741301099548,6.9085,144.75,144.7,312.14216157]
[1741301100937,88.9085,144.75,144.7,312.14216157]
[1741301101453,88.9415,144.75,144.7,312.14216157]
[1741301101755,91.7048,144.75,144.7,312.14216157]
[1741301104159,91.7048,144.75,144.7,312.14216157]
[1741301108435,7.7067,144.73,144.68,0.03]
[1741301108658,9.17984911,144.73,144.68,0.03]
[1741301108960,84.7639,144.72,144.68,0.03]
[1741301110655,82.0,144.71,144.68,0.03]
[1741301112144,1.47314911,144.7,144.68,0.03]
[1741301112341,83.47314911,144.7,144.68,0.03]
[1741301112545,83.47314911,144.7,144.6,1.6247]
[1741301112546,82.0,144.69,144.6,1.6247]
[1741301112748,82.0,144.68,144.6,8.3847]
[1741301113162,82.0,144.68,144.61,0.14216157]
[1741301113467,82.0,144.68,144.6,8.3847]
[1741301113664,82.0,144.68,144.6,1.6247]
[1741301114055,82.0,144.68,144.61,0.14216157]
[1741301114568,83.6631,144.68,144.65,0.14216157]
[1741301114768,82.0,144.67,144.64,312.0]
[1741301116363,82.0,144.67,144.65,0.14216157]
[1741301117349,82.0,144.7,144.62,8.68276157]
[1741301117573,82.0,144.7,144.62,90.78276157]
[1741301117758,82.0,144.7,144.63,0.28432314]
[1741301118157,82.0,144.7,144.64,0.14216157]
[1741301118765,82.0,144.7,144.63,7.05586157]
[1741301119276,82.0,144.7,144.65,0.14216157]
[1741301119450,1.6814,144.75,144.65,0.14216157]
[1741301119451,82.0,144.74,144.65,0.14216157]
[1741301119651,82.0,144.73,144.65,0.14216157]
[1741301120277,82.0,144.73,144.7,0.14216157]
[1741301120579,0.28432314,144.7,144.58,34.58975178]
[1741301120756,82.0,144.69,144.58,36.04189355]
[1741301121073,82.0,144.69,144.59,34.83973504]
[1741301121773,84.0733,144.69,144.58,34.58975178]
[1741301121968,84.0733,144.69,144.59,118.3916214]
[1741301122277,2.0733,144.69,144.62,0.14216157]
[1741301122773,83.6159,144.71,144.62,0.14216157]
[1741301123562,83.6159,144.71,144.67,0.14216157]
[1741301124782,83.6159,144.71,144.62,0.14216157]
[1741301125758,91.01377225,144.7,144.59,41.26293504]
[1741301125954,82.0,144.69,144.59,41.26293504]
[1741301126161,0.28432314,144.67,144.6,0.14216157]
[1741301126366,82.0,144.66,144.6,0.14216157]
[1741301127062,82.0,144.66,144.6,312.0]
[1741301127467,82.0,144.66,144.61,0.14216157]
[1741301127661,82.0,144.66,144.59,41.26293504]
[1741301127868,82.0,144.66,144.6,0.14216157]
[1741301130482,82.0,144.66,144.62,0.14216157]
[1741301130958,82.0,144.66,144.6,0.14216157]
[1741301133561,82.0,144.7,144.6,0.14216157]
[1741301133760,82.0,144.69,144.6,0.14216157]
[1741301133984,82.0,144.69,144.63,0.14216157]
[1741301134163,82.0,144.68,144.63,0.14216157]
[1741301134565,82.0,144.68,144.6,0.14216157]
[1741301135696,0.28432314,144.67,144.59,116.93973504]
[1741301135896,6.0995,144.67,144.59,116.93973504]
[1741301136194,6.0995,144.67,144.6,0.14216157]
[1741301137392,6.0995,144.67,144.61,312.0]
[1741301137602,6.0995,144.67,144.62,0.14216157]
[1741301139095,6.0995,144.67,144.6,0.17216157]
[1741301139479,82.0,144.66,144.6,0.17216157]
[1741301142111,82.0,144.66,144.63,0.14216157]
[1741301142277,82.0,144.65,144.63,0.14216157]
[1741301142680,82.0,144.65,144.6,0.17216157]
[1741301142886,82.0,144.64,144.6,0.17216157]
[1741301145687,82.0,144.64,144.63,312.14216157]
[1741301148908,0.28432314,144.66,144.63,312.14216157]
[1741301150912,0.28432314,144.66,144.63,312.17216157]
[1741301156717,0.28432314,144.66,144.63,0.17216157]
[1741301159716,0.28432314,144.66,144.63,312.17216157]
[1741301160595,1.5404,144.65,144.63,0.03]
[1741301160792,1.75747225,144.64,144.63,0.03]
[1741301168217,3.75747225,144.64,144.63,0.03]
[1741301168526,1.75747225,144.64,144.63,0.03]
[1741301169432,3.75747225,144.64,144.63,0.03]
[1741301169910,9.83937225,144.64,144.63,0.03]
[1741301175122,16.57937225,144.64,144.63,0.03]
[1741301181937,14.57937225,144.64,144.63,0.03]
[1741301183936,19.83717968,144.64,144.63,0.03]
[1741301188042,13.09717968,144.64,144.63,0.03]
[1741301188358,19.83717968,144.64,144.63,0.03]
[1741301190548,13.75527968,144.64,144.63,0.03]
[1741301191134,15.75527968,144.64,144.63,0.03]
[1741301202552,13.75527968,144.64,144.63,0.03]
[1741301203350,13.47095654,144.64,144.63,0.03]
[1741301203852,13.75527968,144.64,144.63,0.03]
[1741301204239,1.75747225,144.64,144.63,0.03]
[1741301206035,5.29571237,144.68,144.63,0.03]
[1741301206358,1.47314911,144.67,144.64,6.1844]
[1741301206672,10.76825467,144.68,144.65,1.5916]
[1741301206836,0.28432314,144.67,144.65,1.5916]
[1741301207742,10.76825467,144.68,144.65,1.5916]
[1741301208655,0.31732314,144.68,144.65,1.5916]
[1741301208956,0.033,144.68,144.65,1.5916]
[1741301209739,0.033,144.68,144.65,1.6216]
[1741301211135,0.033,144.68,144.66,0.14216157]
[1741301211536,6.74,144.71,144.66,0.14216157]
[1741301213549,0.28432314,144.7,144.66,0.14216157]
[1741301214459,0.28432314,144.7,144.66,2.20282043]
[1741301214656,0.28432314,144.7,144.66,0.14216157]
[1741301214657,19.43110853,144.7,144.66,0.14216157]
[1741301214861,6.74,144.71,144.66,0.14216157]
[1741301215058,6.74,144.73,144.66,0.14216157]
[1741301215239,6.88216157,144.74,144.66,312.14216157]
[1741301215441,0.14216157,144.73,144.66,312.14216157]
[1741301215841,10.73525467,144.77,144.66,312.14216157]
[1741301216142,0.28432314,144.73,144.66,312.14216157]
[1741301216344,6.74,144.74,144.66,312.14216157]
[1741301216860,0.28432314,144.74,144.66,312.14216157]
[1741301219455,0.28432314,144.74,144.68,0.14216157]
[1741301219862,175.49525467,144.78,144.7,0.14216157]
[1741301219863,6.74,144.76,144.7,0.14216157]
[1741301220547,0.28432314,144.77,144.7,0.14216157]
[1741301220742,0.28432314,144.79,144.7,0.14216157]
[1741301220944,0.14216157,144.77,144.7,0.14216157]
[1741301221169,0.28432314,144.77,144.7,0.14216157]
[1741301221343,0.28432314,144.77,144.71,6.2175]
[1741301222452,0.31732314,144.77,144.71,6.2175]
[1741301222862,0.31732314,144.77,144.71,318.2175]
[1741301223048,0.033,144.77,144.72,0.14216157]
[1741301245167,0.033,144.77,144.72,312.14216157]
[1741301245583,0.033,144.77,144.73,1.6605]
[1741301257797,0.033,144.77,144.74,0.14216157]
[1741301272011,0.033,144.77,144.74,312.14216157]
[1741301272517,0.033,144.77,144.74,0.14216157]
[1741301274405,0.033,144.77,144.76,0.14216157]
[1741301275520,0.033,144.77,144.76,312.14216157]
[1741301278198,0.033,144.77,144.76,0.14216157]
[1741301285718,0.033,144.77,144.76,312.14216157]
[1741301286624,0.033,144.77,144.76,0.14216157]
[1741301288924,0.033,144.77,144.73,1.6605]
[1741301289099,82.0,144.76,144.73,1.6605]
[1741301289298,82.0,144.76,144.74,0.14216157]
[1741301289518,82.0,144.76,144.73,1.6605]
[1741301290031,82.0,144.76,144.7,6.1075]
[1741301290229,82.0,144.76,144.71,0.14216157]
[1741301290999,0.033,144.77,144.71,0.14216157]
[1741301292411,82.0,144.76,144.71,0.14216157]
[1741301292607,0.033,144.77,144.7,6.1075]
[1741301292608,82.0,144.75,144.7,6.1075]
[1741301292800,82.0,144.75,144.69,1.6837]
[1741301293018,82.0,144.75,144.7,0.14216157]
[1741301295722,82.0,144.75,144.7,312.14216157]
[1741301296961,82.0,144.74,144.7,312.14216157]
[1741301298235,82.0,144.74,144.7,0.14216157]
[1741301298641,82.0,144.74,144.7,7.05286157]
[1741301301240,82.0,144.74,144.73,312.14216157]
[1741301301439,82.0,144.76,144.74,0.14216157]
[1741301301752,0.033,144.77,144.74,0.14216157]
[1741301301926,0.033,144.77,144.72,0.14216157]
[1741301303345,0.033,144.77,144.72,7.05196157]
[1741301304652,0.033,144.77,144.75,0.14216157]
[1741301305842,0.033,144.77,144.73,0.14216157]
[1741301306846,82.0,144.76,144.71,6.1709]
[1741301307051,82.0,144.75,144.71,6.1709]
[1741301307351,82.0,144.75,144.69,1.6837]
[1741301307555,82.0,144.75,144.7,0.14216157]
[1741301307930,82.0,144.75,144.69,1.6837]
[1741301308147,82.0,144.75,144.7,312.0]
[1741301308349,82.0,144.75,144.71,0.14216157]
[1741301308734,82.0,144.75,144.7,0.14216157]
[1741301311756,82.0,144.75,144.7,312.14216157]
[1741301311961,82.0,144.74,144.7,312.14216157]
[1741301312840,82.0,144.74,144.7,0.14216157]
[1741301315861,82.0,144.74,144.7,312.14216157]